fUSD/lending_fUSD_20260515
["ID","MTS","AMOUNT","RATE_DAILY","PERIOD"]
[422346065,1778857834000,-500.0,0.00014999,2]
[422346081,1778857834000,-150.0,0.00014999,2]
[422346077,1778857834000,-500.0,0.00014999,2]
[422346088,1778857834000,-300.0,0.00014999,2]
[422346071,1778857834000,-500.0,0.00014999,2]
[422346063,1778857834000,-500.0,0.00014999,2]
[422346061,1778857834000,-500.0,0.00014999,2]
[422346060,1778857834000,-500.0,0.00014999,2]
[422346059,1778857834000,-500.0,0.00014999,2]
[422346062,1778857834000,-500.0,0.00014999,2]
[422346078,1778857834000,-500.0,0.00014999,2]
[422346068,1778857834000,-500.0,0.00014999,2]
[422346075,1778857834000,-500.0,0.00014999,2]
[422346064,1778857834000,-500.0,0.00014999,2]
[422346069,1778857834000,-500.0,0.00014999,2]
[422346067,1778857834000,-500.0,0.00014999,2]
[422346076,1778857834000,-500.0,0.00014999,2]
[422346070,1778857834000,-500.0,0.00014999,2]
[422346074,1778857834000,-500.0,0.00014999,2]
[422346072,1778857834000,-500.0,0.00014999,2]
[422346073,1778857834000,-500.0,0.00014999,2]
[422346079,1778857834000,-500.0,0.00014999,2]
[422346100,1778857838000,-803.07,0.000149,2]
[422346102,1778857838000,-160.11478616,0.00015,2]
[422346104,1778857838000,-305.63392341,0.00015,2]
[422346103,1778857838000,-287.68959405,0.00015,2]
[422346105,1778857838000,-6618370.41870487,0.00015,2]
[422346101,1778857838000,-143.88521384,0.000149,2]
[422346412,1778857841000,-77971.91826063,0.00015,2]
[422346411,1778857841000,-6563.89435952,0.00015,2]
[422346410,1778857841000,-2038.3362421,0.00015,2]
[422346414,1778857841000,-4025.0,0.00015,2]
[422346415,1778857841000,-301.92197159,0.00015,2]
[422346416,1778857841000,-522.9232407,0.00015,2]
[422346413,1778857841000,-29280.69913042,0.00015,2]
[422346435,1778857843000,-1733.59562206,0.00015,2]
[422346436,1778857843000,-262.0,0.00015,2]
[422346434,1778857843000,-3776.1636923,0.00015,2]
[422346433,1778857843000,-9580.97694113,0.00015,2]
[422346470,1778857846000,-79370.994,0.00015,2]
[422346467,1778857846000,-5443.09231372,0.00015,2]
[422346469,1778857846000,-98762.84129037,0.00015,2]
[422346466,1778857846000,-3534.32062582,0.00015,2]
[422346471,1778857846000,-587.51345865,0.00015,2]
[422346472,1778857846000,-919.51043313,0.00015,2]
[422346473,1778857846000,-1384.11482102,0.00015,2]
[422346474,1778857846000,-1408.92918114,0.00015,2]
[422346468,1778857846000,-10081.64898661,0.00015,2]
[422346563,1778857951000,161.0,0.000301,120]
[422346564,1778858131000,500.0,0.0003013,120]
[422346565,1778858164000,217.8,0.00027871,120]
[422346568,1778858398000,-250.0,0.00014,2]
[422346570,1778858398000,-300.0,0.00014298,2]
[422346572,1778858398000,-81.96,0.00014373,2]
[422346571,1778858398000,-201.38,0.00014321,2]
[422346569,1778858398000,-166.66,0.00014224,2]
[422346574,1778858399000,-875.94585965,0.00014373,2]
[422346573,1778858399000,-124.05414035,0.00014373,2]
[422346577,1778858400000,-300.0,0.00014447,2]
[422346575,1778858400000,-1000.0,0.00014373,2]
[422346578,1778858400000,-75.94585965,0.00014447,2]
[422346576,1778858400000,-624.05414035,0.00014373,2]
[422346579,1778858400000,-224.05414035,0.00014447,2]
[422346580,1778858400000,-300.0,0.00014447,2]
[422346581,1778858400000,-475.94585965,0.00014458,2]
[422346587,1778858401000,-422.94585965,0.00014483,2]
[422346586,1778858401000,-577.05414035,0.00014458,2]
[422346585,1778858401000,-700.0,0.00014458,2]
[422346584,1778858401000,-300.0,0.00014457,2]
[422346583,1778858401000,-747.0,0.00014458,2]
[422346582,1778858401000,-253.0,0.00014457,2]
[422346589,1778858402000,-1000.0,0.00014483,2]
[422346588,1778858402000,-1000.0,0.00014483,2]
[422346592,1778858403000,-1000.0,0.00014483,2]
[422346591,1778858403000,-922.94585965,0.00014483,2]
[422346590,1778858403000,-77.05414035,0.00014483,2]
[422346593,1778858404000,-577.05414035,0.00014483,2]
[422346594,1778858404000,-422.94585965,0.00014483,2]
[422346596,1778858404000,-168.12267278,0.00014483,2]
[422346598,1778858404000,-217.8,0.00014556,2]
[422346597,1778858404000,-166.66,0.00014523,2]
[422346595,1778858404000,-1000.0,0.00014483,2]
[422346604,1778858405000,-1000.0,0.00014558,2]
[422346603,1778858405000,-297.41732722,0.00014558,2]
[422346602,1778858405000,-500.0,0.00014557,2]
[422346601,1778858405000,-150.0,0.00014557,2]
[422346600,1778858405000,-52.58267278,0.00014557,2]
[422346599,1778858405000,-447.41732722,0.00014557,2]
[422346606,1778858406000,-1000.0,0.00014558,2]
[422346605,1778858406000,-1000.0,0.00014558,2]
[422346609,1778858407000,-1000.0,0.00014558,2]
[422346608,1778858407000,-1000.0,0.00014558,2]
[422346607,1778858407000,-1000.0,0.00014558,2]
[422346610,1778858408000,-1000.0,0.00014558,2]
[422346611,1778858409000,-1000.0,0.00014558,2]
[422346614,1778858409000,-1000.0,0.00014548,2]
[422346613,1778858409000,-1000.0,0.00014548,2]
[422346612,1778858409000,-1000.0,0.00014548,2]
[422346616,1778858410000,-1000.0,0.00014548,2]
[422346615,1778858410000,-1000.0,0.00014548,2]
[422346619,1778858411000,-1000.0,0.00014548,2]
[422346618,1778858411000,-1000.0,0.00014548,2]
[422346617,1778858411000,-1000.0,0.00014548,2]
[422346621,1778858414000,-1000.0,0.00014548,2]
[422346620,1778858414000,-1000.0,0.00014548,2]
[422346623,1778858415000,-1000.0,0.00014558,2]
[422346622,1778858415000,-1000.0,0.00014548,2]
[422346624,1778858416000,-1000.0,0.00014558,2]
[422346626,1778858416000,-1000.0,0.00014558,2]
[422346625,1778858416000,-1000.0,0.00014558,2]
[422346627,1778858417000,-1000.0,0.00014558,2]
[422346628,1778858418000,-1000.0,0.00014558,2]
[422346629,1778858418000,-1000.0,0.00014558,2]
[422346630,1778858419000,-1000.0,0.00014558,2]
[422346633,1778858420000,-1000.0,0.00014529,2]
[422346632,1778858420000,-1000.0,0.00014529,2]
[422346631,1778858420000,-1000.0,0.00014529,2]
[422346634,1778858421000,-1000.0,0.00014529,2]
[422346636,1778858422000,-1000.0,0.00014529,2]
[422346635,1778858422000,-1000.0,0.00014529,2]
[422346637,1778858423000,-1000.0,0.00014529,2]
[422346639,1778858429000,-1000.0,0.00014458,2]
[422346638,1778858429000,-1000.0,0.00014458,2]
[422346640,1778858431000,-1000.0,0.00014458,2]
[422346643,1778858431000,-1000.0,0.00014458,2]
[422346642,1778858431000,-1000.0,0.00014458,2]
[422346641,1778858431000,-1000.0,0.00014458,2]
[422346644,1778858433000,-1000.0,0.00014458,2]
[422346645,1778858434000,-1000.0,0.00014458,2]
[422346646,1778858434000,-1000.0,0.00014458,2]
[422346647,1778858442000,-1000.0,0.00014458,2]
[422346648,1778858442000,-1000.0,0.00014458,2]
[422346650,1778858443000,-1000.0,0.00014458,2]
[422346649,1778858443000,-1000.0,0.00014458,2]
[422346653,1778858444000,-1000.0,0.00014529,2]
[422346652,1778858444000,-828.6052,0.00014529,2]
[422346651,1778858444000,-171.3948,0.00014458,2]
[422346654,1778858445000,-1000.0,0.00014529,2]
[422346655,1778858445000,-1000.0,0.00014529,2]
[422346656,1778858446000,-1000.0,0.00014529,2]
[422346657,1778858447000,-1000.0,0.00014529,2]
[422346658,1778858448000,-1000.0,0.00014529,2]
[422346660,1778858453000,-1000.0,0.00014529,2]
[422346659,1778858453000,-1000.0,0.00014529,2]
[422346661,1778858453000,-1000.0,0.00014529,2]
[422346664,1778858454000,-1000.0,0.00014529,2]
[422346663,1778858454000,-1000.0,0.00014529,2]
[422346662,1778858454000,-1000.0,0.00014529,2]
[422346666,1778858455000,-1000.0,0.00014529,2]
[422346665,1778858455000,-1000.0,0.00014529,2]
[422346669,1778858456000,-1000.0,0.00014529,2]
[422346668,1778858456000,-1000.0,0.00014529,2]
[422346667,1778858456000,-1000.0,0.00014529,2]
[422346671,1778858457000,-1000.0,0.00014529,2]
[422346670,1778858457000,-1000.0,0.00014529,2]
[422346672,1778858458000,-1000.0,0.00014529,2]
[422346673,1778858458000,-1000.0,0.00014529,2]
[422346676,1778858459000,-1000.0,0.00014529,2]
[422346675,1778858459000,-1000.0,0.00014529,2]
[422346674,1778858459000,-1000.0,0.00014529,2]
[422346678,1778858460000,-1000.0,0.00014529,2]
[422346677,1778858460000,-1000.0,0.00014529,2]
[422346679,1778858464000,1055.07556511,0.0002,120]
[422346681,1778858469000,-850.0,0.00014529,2]
[422346680,1778858469000,-150.0,0.00014528,2]
[422346683,1778858470000,-1000.0,0.00014529,2]
[422346682,1778858470000,-1000.0,0.00014529,2]
[422346684,1778858471000,-1000.0,0.00014529,2]
[422346685,1778858472000,-1000.0,0.00014529,2]
[422346686,1778858472000,-1000.0,0.00014529,2]
[422346687,1778858472000,-1000.0,0.00014429,2]
[422346690,1778858478000,-500.0,0.00014429,2]
[422346691,1778858518000,153.58100683,0.0002,120]
[422346692,1778858624000,214.0,0.00030137,120]
[422346696,1778858792000,160.43,9.556e-05,2]
[422346695,1778858792000,160.43,8.627e-05,2]
[422346694,1778858792000,160.43,7.698e-05,2]
[422346693,1778858792000,160.43,6.769e-05,2]
[422346697,1778858805000,-160.43,0.00010485,2]
[422346698,1778858805000,-95.03537406,0.00011414,2]
[422346699,1778858856000,243.68906923,0.00028326,120]
[422346700,1778858856000,243.68906923,0.00028484,120]
[422346728,1778859033000,-150.0,0.00013737,2]
[422346727,1778859033000,-150.0,0.00013737,2]
[422346730,1778859033000,-150.0,0.00013787,2]
[422346735,1778859033000,-150.0,0.00013896,2]
[422346732,1778859033000,-166.66,0.00013836,2]
[422346733,1778859033000,-150.0,0.00013851,2]
[422346734,1778859033000,-150.0,0.00013862,2]
[422346741,1778859033000,-150.0,0.00014033,2]
[422346736,1778859033000,-150.0,0.00013942,2]
[422346753,1778859033000,-150.0,0.00014169,2]
[422346731,1778859033000,-150.0,0.00013806,2]
[422346739,1778859033000,-150.0,0.00013987,2]
[422346737,1778859033000,-166.66,0.00013973,2]
[422346740,1778859033000,-150.0,0.00013987,2]
[422346726,1778859033000,-150.0,0.00013715,2]
[422346743,1778859033000,-115.86520384,0.0001405,2]
[422346755,1778859033000,-150.0,0.00014214,2]
[422346757,1778859033000,-150.0,0.00014237,2]
[422346742,1778859033000,-34.13479616,0.0001405,2]
[422346745,1778859033000,-150.0,0.00014078,2]
[422346738,1778859033000,-150.0,0.00013987,2]
[422346725,1778859033000,-200.0,0.00013699,2]
[422346724,1778859033000,-166.66,0.00013699,2]
[422346720,1778859033000,-150.0,0.00013624,2]
[422346704,1778859033000,-65.39462594,0.00011414,2]
[422346705,1778859033000,-160.43,0.00012343,2]
[422346707,1778859033000,-160.43,0.00013272,2]
[422346706,1778859033000,-2000.0,0.00013149,2]
[422346709,1778859033000,-378.87462594,0.00013487,2]
[422346708,1778859033000,-821.12537406,0.00013487,2]
[422346711,1778859033000,-150.0,0.00013488,2]
[422346713,1778859033000,-150.0,0.00013488,2]
[422346716,1778859033000,-150.0,0.00013488,2]
[422346723,1778859033000,-150.0,0.00013675,2]
[422346715,1778859033000,-150.0,0.00013488,2]
[422346714,1778859033000,-150.0,0.00013488,2]
[422346717,1778859033000,-150.0,0.00013488,2]
[422346744,1778859033000,-150.0,0.0001405,2]
[422346712,1778859033000,-150.0,0.00013488,2]
[422346718,1778859033000,-150.0,0.00013533,2]
[422346722,1778859033000,-299.99,0.00013669,2]
[422346721,1778859033000,-150.0,0.00013669,2]
[422346729,1778859033000,-150.0,0.0001376,2]
[422346719,1778859033000,-150.0,0.00013578,2]
[422346710,1778859033000,-150.0,0.00013488,2]
[422346747,1778859033000,-40.06494182,0.00014087,2]
[422346813,1778859033000,-2419.2268679,0.00014506,2]
[422346751,1778859033000,-166.66,0.0001411,2]
[422346801,1778859033000,-150.0,0.00014487,2]
[422346805,1778859033000,-321452.3993475,0.00014488,2]
[422346821,1778859033000,-500.0,0.00014528,2]
[422346819,1778859033000,-205.02790707,0.00014519,2]
[422346811,1778859033000,-1604.03220223,0.00014502,2]
[422346807,1778859033000,-5626.7895727,0.00014488,2]
[422346809,1778859033000,-1804.34840696,0.000145,2]
[422346823,1778859033000,-500.0,0.00014528,2]
[422346815,1778859033000,-4871.29605477,0.0001451,2]
[422346795,1778859033000,-14484.75468752,0.00014461,2]
[422346817,1778859033000,-128.70394523,0.0001451,2]
[422346818,1778859033000,-14484.75468752,0.00014516,2]
[422346820,1778859033000,-500.0,0.00014528,2]
[422346828,1778859033000,-500.0,0.00014528,2]
[422346825,1778859033000,-500.0,0.00014528,2]
[422346824,1778859033000,-500.0,0.00014528,2]
[422346827,1778859033000,-500.0,0.00014528,2]
[422346829,1778859033000,-500.0,0.00014528,2]
[422346826,1778859033000,-227.90539732,0.00014528,2]
[422346750,1778859033000,-109.93505818,0.00014087,2]
[422346822,1778859033000,-500.0,0.00014528,2]
[422346799,1778859033000,-150.0,0.00014487,2]
[422346803,1778859033000,-150.0,0.00014487,2]
[422346792,1778859033000,-150.0,0.00014441,2]
[422346752,1778859033000,-150.0,0.00014123,2]
[422346759,1778859033000,-150.0,0.00014237,2]
[422346760,1778859033000,-150.0,0.00014237,2]
[422346762,1778859033000,-150.0,0.00014237,2]
[422346769,1778859033000,-150.0,0.0001426,2]
[422346764,1778859033000,-150.0,0.00014237,2]
[422346767,1778859033000,-166.66,0.00014247,2]
[422346790,1778859033000,-5000.0,0.00014429,2]
[422346779,1778859033000,-1604.03220228,0.00014388,2]
[422346771,1778859033000,-150.0,0.00014305,2]
[422346766,1778859033000,-891.436,0.00014238,2]
[422346780,1778859033000,-150.0,0.00014396,2]
[422346773,1778859033000,-150.0,0.00014351,2]
[422346775,1778859033000,-166.66,0.00014384,2]
[422346784,1778859033000,-14484.75468756,0.00014406,2]
[422346782,1778859033000,-506.1309569,0.000144,2]
[422346794,1778859033000,-1604.03220223,0.00014445,2]
[422346788,1778859033000,-5627.41122331,0.00014429,2]
[422346786,1778859033000,-150.0,0.00014424,2]
[422346777,1778859033000,-150.0,0.00014387,2]
[422346798,1778859033000,-506.13095686,0.00014471,2]
[422346833,1778859034000,-500.0,0.00014528,2]
[422346835,1778859034000,-500.0,0.00014528,2]
[422346834,1778859034000,-500.0,0.00014528,2]
[422346832,1778859034000,-500.0,0.00014528,2]
[422346831,1778859034000,-500.0,0.00014528,2]
[422346830,1778859034000,-500.0,0.00014528,2]
[422346836,1778859034000,-1003.9785651,0.00014529,2]
[422346841,1778859034000,-344.81306968,0.00014529,2]
[422346839,1778859034000,-882.31924771,0.00014529,2]
[422346838,1778859034000,-314.5847794,0.00014529,2]
[422346840,1778859034000,-676.9659404,0.00014529,2]
[422346842,1778859034000,-627.39392846,0.00014529,2]
[422346843,1778859034000,-1857.55759253,0.00014529,2]
[422346844,1778859034000,-408.32694597,0.00014529,2]
[422346845,1778859034000,-2539.32212326,0.00014529,2]
[422346837,1778859034000,-2787.09608492,0.00014529,2]
[422346866,1778859038000,-14484.75468752,0.00014571,2]
[422346867,1778859038000,-150.0,0.00014578,2]
[422346865,1778859038000,-2718.17019046,0.00014568,2]
[422346870,1778859038000,-506.13095686,0.00014614,2]
[422346869,1778859038000,-150.0,0.00014612,2]
[422346871,1778859038000,-1604.03220223,0.00014616,2]
[422346872,1778859038000,-150.0,0.00014623,2]
[422346879,1778859038000,-150.0,0.00014687,2]
[422346875,1778859038000,-150.0,0.00014668,2]
[422346885,1778859038000,-150.0,0.00014737,2]
[422346868,1778859038000,-195.608922,0.00014601,2]
[422346876,1778859038000,-1604.03220223,0.00014672,2]
[422346877,1778859038000,-14484.75468752,0.0001468,2]
[422346878,1778859038000,-506.13095686,0.00014686,2]
[422346881,1778859038000,-150.0,0.00014714,2]
[422346880,1778859038000,-2718.17019044,0.00014701,2]
[422346874,1778859038000,-2718.17019044,0.00014634,2]
[422346864,1778859038000,-1604.03220223,0.00014559,2]
[422346859,1778859038000,-500.0,0.00014557,2]
[422346873,1778859038000,-14484.75468752,0.00014626,2]
[422346882,1778859038000,-1604.03220223,0.00014729,2]
[422346848,1778859038000,-150.0,0.00014532,2]
[422346850,1778859038000,-500.0,0.00014557,2]
[422346847,1778859038000,-1151902.19849147,0.00014529,2]
[422346849,1778859038000,-506.13095686,0.00014543,2]
[422346851,1778859038000,-500.0,0.00014557,2]
[422346852,1778859038000,-505.50097699,0.00014557,2]
[422346862,1778859038000,-500.0,0.00014557,2]
[422346853,1778859038000,-500.0,0.00014557,2]
[422346855,1778859038000,-500.0,0.00014557,2]
[422346857,1778859038000,-582.94577915,0.00014557,2]
[422346858,1778859038000,-500.0,0.00014557,2]
[422346861,1778859038000,-840.73,0.00014557,2]
[422346856,1778859038000,-500.0,0.00014557,2]
[422346860,1778859038000,-506.44557619,0.00014557,2]
[422346863,1778859038000,-250847.59107278,0.00014558,2]
[422346854,1778859038000,-500.0,0.00014557,2]
[422346884,1778859038000,-150.0,0.00014737,2]
[422346886,1778859038000,-506.13095686,0.00014757,2]
[422346887,1778859038000,-150.0,0.00014759,2]
[422346924,1778859038000,-500.0,0.00014898,2]
[422346914,1778859038000,-150.0,0.0001485,2]
[422346932,1778859038000,-500.0,0.00014898,2]
[422346936,1778859038000,-500.0,0.00014898,2]
[422346934,1778859038000,-500.0,0.00014898,2]
[422346930,1778859038000,-397.85532222,0.00014898,2]
[422346938,1778859038000,-307.68277898,0.00014898,2]
[422346922,1778859038000,-497.30933608,0.00014898,2]
[422346944,1778859038000,-500.0,0.00014898,2]
[422346942,1778859038000,-500.0,0.00014898,2]
[422346946,1778859038000,-500.0,0.00014898,2]
[422346940,1778859038000,-500.0,0.00014898,2]
[422346950,1778859038000,-500.0,0.00014898,2]
[422346956,1778859038000,-500.0,0.00014898,2]
[422346954,1778859038000,-500.0,0.00014898,2]
[422346883,1778859038000,-14484.75468752,0.00014735,2]
[422346952,1778859038000,-500.0,0.00014898,2]
[422346926,1778859038000,-500.0,0.00014898,2]
[422346948,1778859038000,-500.0,0.00014898,2]
[422346912,1778859038000,-29964.16918207,0.0001485,2]
[422346928,1778859038000,-500.0,0.00014898,2]
[422346893,1778859038000,-10000.0,0.000148,2]
[422346901,1778859038000,-200.0,0.0001481,2]
[422346899,1778859038000,-150.0,0.00014805,2]
[422346895,1778859038000,-480.44861491,0.000148,2]
[422346903,1778859038000,-506.13095686,0.00014829,2]
[422346890,1778859038000,-2000.0,0.00014793,2]
[422346897,1778859038000,-3462.62338385,0.000148,2]
[422346889,1778859038000,-14484.75468752,0.0001479,2]
[422346888,1778859038000,-2718.17019044,0.00014767,2]
[422346905,1778859038000,-2718.17019044,0.00014834,2]
[422346907,1778859038000,-1680.0,0.00014835,2]
[422346909,1778859038000,-14484.75468752,0.00014845,2]
[422346916,1778859038000,-150.0,0.00014895,2]
[422346920,1778859038000,-500.0,0.00014898,2]
[422346891,1778859038000,-150.0,0.00014799,2]
[422346918,1778859038000,-187.80258901,0.00014898,2]
[422347042,1778859039000,-500.0,0.00014996,2]
[422347040,1778859039000,-500.0,0.00014996,2]
[422347037,1778859039000,-500.0,0.00014996,2]
[422347033,1778859039000,-500.0,0.00014996,2]
[422347031,1778859039000,-500.0,0.00014996,2]
[422347014,1778859039000,-204.41834298,0.00014986,2]
[422347027,1778859039000,-205.02790707,0.0001499,2]
[422347025,1778859039000,-205.02790707,0.0001499,2]
[422347044,1778859039000,-500.0,0.00014996,2]
[422347012,1778859039000,-156.34451496,0.00014986,2]
[422347029,1778859039000,-214.997284,0.00014992,2]
[422347052,1778859039000,-500.0,0.00014996,2]
[422347062,1778859039000,-500.0,0.00014996,2]
[422347048,1778859039000,-500.0,0.00014996,2]
[422347046,1778859039000,-500.0,0.00014996,2]
[422347070,1778859039000,-500.0,0.00014996,2]
[422347056,1778859039000,-500.0,0.00014996,2]
[422347058,1778859039000,-500.0,0.00014996,2]
[422347064,1778859039000,-500.0,0.00014996,2]
[422347054,1778859039000,-500.0,0.00014996,2]
[422347060,1778859039000,-500.0,0.00014996,2]
[422347068,1778859039000,-500.0,0.00014996,2]
[422347066,1778859039000,-500.0,0.00014996,2]
[422347071,1778859039000,-267.18441959,0.00014996,2]
[422347010,1778859039000,-266.38482167,0.00014986,2]
[422347051,1778859039000,-500.0,0.00014996,2]
[422347008,1778859039000,-188.21085344,0.00014986,2]
[422346974,1778859039000,-14484.75468752,0.000149,2]
[422347023,1778859039000,-275.90606938,0.00014986,2]
[422347073,1778859039000,-151.0,0.00014997,2]
[422346966,1778859039000,-2000.0,0.000149,2]
[422346968,1778859039000,-2676.0121,0.000149,2]
[422346972,1778859039000,-506.13095686,0.000149,2]
[422346970,1778859039000,-25000.0,0.000149,3]
[422346976,1778859039000,-2718.17019044,0.000149,2]
[422346964,1778859039000,-1157.6353674,0.000149,2]
[422346958,1778859039000,-500.0,0.00014898,2]
[422346960,1778859039000,-500.0,0.00014898,2]
[422346978,1778859039000,-150.0,0.00014941,2]
[422346962,1778859039000,-1325979.7152,0.00014899,2]
[422346980,1778859039000,-276.0975021,0.0001495,21]
[422347006,1778859039000,-1215.46028509,0.0001497,2]
[422346984,1778859039000,-500.0,0.0001497,2]
[422346992,1778859039000,-500.0,0.0001497,2]
[422346986,1778859039000,-500.0,0.0001497,2]
[422346990,1778859039000,-500.0,0.0001497,2]
[422347002,1778859039000,-1000.0,0.0001497,2]
[422346996,1778859039000,-689.73790928,0.0001497,2]
[422347000,1778859039000,-1000.0,0.0001497,2]
[422346998,1778859039000,-1000.0,0.0001497,2]
[422346994,1778859039000,-500.0,0.0001497,2]
[422347017,1778859039000,-254.66275453,0.00014986,2]
[422347004,1778859039000,-1000.0,0.0001497,2]
[422347019,1778859039000,-229.98198189,0.00014986,2]
[422347021,1778859039000,-287.11416308,0.00014986,2]
[422346982,1778859039000,-500.0,0.0001497,2]
[422347075,1778859039000,-500.0,0.00014999,2]
[422347035,1778859039000,-500.0,0.00014996,2]
[422347086,1778859039000,-500.0,0.00014999,2]
[422347133,1778859039000,-500.0,0.00014999,2]
[422347129,1778859039000,-533.1147041,0.00014999,2]
[422347135,1778859039000,-500.0,0.00014999,2]
[422347131,1778859039000,-500.0,0.00014999,2]
[422347128,1778859039000,-533.03,0.00014999,2]
[422347137,1778859039000,-500.0,0.00014999,2]
[422347154,1778859039000,-500.0,0.00014999,2]
[422347144,1778859039000,-500.0,0.00014999,2]
[422347148,1778859039000,-500.0,0.00014999,2]
[422347142,1778859039000,-500.0,0.00014999,2]
[422347139,1778859039000,-500.0,0.00014999,2]
[422347149,1778859039000,-500.0,0.00014999,2]
[422347127,1778859039000,-533.03,0.00014999,2]
[422347151,1778859039000,-500.0,0.00014999,2]
[422347136,1778859039000,-500.0,0.00014999,2]
[422347152,1778859039000,-401.0210076,0.00014999,2]
[422347157,1778859039000,-527.38709912,0.00014999,2]
[422347162,1778859039000,-500.0,0.00014999,2]
[422347159,1778859039000,-500.0,0.00014999,2]
[422347161,1778859039000,-500.0,0.00014999,2]
[422347164,1778859039000,-500.0,0.00014999,2]
[422347169,1778859039000,-500.0,0.00014999,2]
[422347156,1778859039000,-500.0,0.00014999,2]
[422347172,1778859039000,-500.0,0.00014999,2]
[422347166,1778859039000,-500.0,0.00014999,2]
[422347078,1778859039000,-500.0,0.00014999,2]
[422347146,1778859039000,-500.0,0.00014999,2]
[422347134,1778859039000,-500.0,0.00014999,2]
[422347141,1778859039000,-500.0,0.00014999,2]
[422347125,1778859039000,-533.03,0.00014999,2]
[422347080,1778859039000,-500.0,0.00014999,2]
[422347093,1778859039000,-533.03,0.00014999,2]
[422347082,1778859039000,-506.14328985,0.00014999,2]
[422347126,1778859039000,-533.03,0.00014999,2]
[422347091,1778859039000,-254.28762829,0.00014999,2]
[422347084,1778859039000,-500.0,0.00014999,2]
[422347095,1778859039000,-533.03,0.00014999,2]
[422347097,1778859039000,-533.03,0.00014999,2]
[422347099,1778859039000,-533.03,0.00014999,2]
[422347101,1778859039000,-533.03,0.00014999,2]
[422347112,1778859039000,-533.03,0.00014999,2]
[422347114,1778859039000,-533.03,0.00014999,2]
[422347118,1778859039000,-533.03,0.00014999,2]
[422347088,1778859039000,-500.0,0.00014999,2]
[422347108,1778859039000,-533.03,0.00014999,2]
[422347120,1778859039000,-533.03,0.00014999,2]
[422347132,1778859039000,-500.0,0.00014999,2]
[422347123,1778859039000,-533.03,0.00014999,2]
[422347122,1778859039000,-533.03,0.00014999,2]
[422347121,1778859039000,-533.03,0.00014999,2]
[422347110,1778859039000,-533.03,0.00014999,2]
[422347124,1778859039000,-533.03,0.00014999,2]
[422347106,1778859039000,-533.03,0.00014999,2]
[422347170,1778859039000,-500.0,0.00014999,2]
[422347103,1778859039000,-533.03,0.00014999,2]
[422347116,1778859039000,-533.03,0.00014999,2]
[422347119,1778859039000,-533.03,0.00014999,2]
[422347198,1778859040000,-840.73,0.00014999,2]
[422347195,1778859040000,-840.73,0.00014999,2]
[422347209,1778859040000,-840.73,0.00014999,2]
[422347197,1778859040000,-840.73,0.00014999,2]
[422347203,1778859040000,-840.73,0.00014999,2]
[422347207,1778859040000,-840.73,0.00014999,2]
[422347205,1778859040000,-840.73,0.00014999,2]
[422347193,1778859040000,-840.73,0.00014999,2]
[422347181,1778859040000,-457.24758592,0.00014999,2]
[422347188,1778859040000,-840.73,0.00014999,2]
[422347190,1778859040000,-840.73,0.00014999,2]
[422347191,1778859040000,-840.73,0.00014999,2]
[422347180,1778859040000,-500.0,0.00014999,2]
[422347176,1778859040000,-500.0,0.00014999,2]
[422347186,1778859040000,-840.73,0.00014999,2]
[422347185,1778859040000,-840.73,0.00014999,2]